bitfinex-derivatives/quotes_SOLF0:USTF0_20241024
["timestamp","ask_amount","ask_price","bid_price","bid_amount"]
[1729787729203,2.8318,176.7,176.66,2.8323]
[1729787730207,12.22662539,176.69,176.62,1.2181]
[1729787730413,12.22662539,176.69,176.62,5.8981]
[1729787730598,12.22662539,176.71,176.62,5.8981]
[1729787730801,15.05822539,176.71,176.67,2.8321]
[1729787731302,12.22662539,176.71,176.67,2.8321]
[1729787732009,12.22662539,176.71,176.62,5.8981]
[1729787733216,2.8318,176.7,176.66,2.8322]
[1729787733509,2.8318,176.7,176.62,5.8981]
[1729787733711,2.8318,176.7,176.66,2.8322]
[1729787733901,12.22662539,176.69,176.63,4.68]
[1729787734208,5.8754,176.75,176.62,1.2181]
[1729787734209,12.22662539,176.67,176.62,2.833]
[1729787734409,12.22662539,176.67,176.59,4.68]
[1729787734602,12.22662539,176.69,176.59,4.68]
[1729787734805,12.22662539,176.69,176.64,2.8326]
[1729787735704,2.8321,176.68,176.61,2.8331]
[1729787735910,2.8321,176.68,176.59,6.09649558]
[1729787736208,2.8321,176.68,176.59,4.68]
[1729787736505,2.8321,176.68,176.64,2.8326]
[1729787737009,2.8321,176.68,176.59,4.68]
[1729787737209,2.8318,176.7,176.6,12.22662539]
[1729787737406,12.22662539,176.71,176.6,12.22662539]
[1729787737600,12.22662539,176.71,176.65,2.8324]
[1729787737805,2.8319,176.69,176.65,2.8324]
[1729787738206,12.22662539,176.71,176.64,7.5126]
[1729787738406,2.8319,176.69,176.64,4.68]
[1729787738906,12.22662539,176.71,176.65,2.8325]
[1729787739112,2.8321,176.68,176.65,2.8325]
[1729787740012,2.8322,176.68,176.64,7.5126]
[1729787740209,2.8322,176.68,176.64,4.68]
[1729787740409,5.8375,176.74,176.6,12.22662539]
[1729787740410,12.22662539,176.71,176.63,4.68]
[1729787740606,12.22662539,176.69,176.61,4.68]
[1729787740813,12.22662539,176.67,176.61,4.68]
[1729787741310,2.8326,176.65,176.62,2.8329]
[1729787741615,4.68,176.7,176.61,4.68]
[1729787741912,2.8322,176.68,176.64,2.8326]
[1729787742315,12.22662539,176.71,176.64,2.8326]
[1729787743235,12.22662539,176.69,176.61,4.68]
[1729787743473,12.22662539,176.69,176.63,2.8328]
[1729787744332,2.8324,176.66,176.63,2.8328]
[1729787744940,2.8323,176.67,176.63,2.8328]
[1729787745342,12.22662539,176.69,176.63,2.8328]
[1729787745539,2.8323,176.67,176.63,2.8328]
[1729787746918,12.22662539,176.64,176.57,4.68]
[1729787747520,12.22662539,176.64,176.56,1.2421]
[1729787747722,12.22662539,176.64,176.56,5.9221]
[1729787748212,2.8331,176.62,176.58,2.8335]
[1729787748409,12.22662539,176.64,176.58,2.8335]
[1729787748920,12.22662539,176.64,176.55,4.68]
[1729787749121,12.22662539,176.61,176.55,7.5141]
[1729787749310,12.22662539,176.61,176.55,4.68]
[1729787749715,2.8336,176.59,176.54,2.8343]
[1729787749915,12.22662539,176.56,176.49,1.1594]
[1729787750520,1.2447,176.65,176.49,1.1594]
[1729787750521,12.22662539,176.59,176.49,1.1594]
[1729787750722,12.22662539,176.59,176.49,13.38602539]
[1729787751022,2.8337,176.58,176.55,2.8341]
[1729787751516,12.22662539,176.61,176.52,4.68]
[1729787751819,2.8334,176.6,176.52,4.68]
[1729787752116,2.8334,176.6,176.56,2.8339]
[1729787753123,2.8335,176.59,176.56,2.8339]
[1729787753525,12.22662539,176.61,176.55,2.8341]
[1729787753822,2.8336,176.59,176.52,4.68]
[1729787754021,2.8336,176.59,176.55,2.834]
[1729787754226,2.8337,176.58,176.52,4.68]
[1729787754711,2.8337,176.58,176.55,2.834]
[1729787754915,2.8337,176.58,176.52,4.68]
[1729787754916,2.8334,176.6,176.52,4.68]
[1729787755222,12.22662539,176.61,176.57,2.8337]
[1729787755916,15.05992539,176.61,176.57,2.8337]
[1729787756119,15.05992539,176.61,176.58,2.8336]
[1729787756421,12.22662539,176.63,176.53,1.1848]
[1729787758317,2.8331,176.62,176.59,2.8334]
[1729787759120,2.8333,176.61,176.58,2.8336]
[1729787759422,12.22662539,176.63,176.57,4.68]
[1729787759622,2.8333,176.61,176.58,2.8336]
[1729787760520,12.22662539,176.68,176.57,16.90662539]
[1729787761128,2.8326,176.65,176.6,2.8333]
[1729787761326,2.8326,176.65,176.57,16.90662539]
[1729787761824,12.22662539,176.68,176.57,16.90662539]
[1729787762019,7.105,176.71,176.6,2.8332]
[1729787762020,12.22662539,176.66,176.6,2.8332]
[1729787762519,12.22662539,176.66,176.56,4.68]
[1729787762820,12.22662539,176.64,176.53,1.1848]
[1729787763022,12.22662539,176.61,176.54,4.68]
[1729787763419,2.8335,176.59,176.55,2.8341]
[1729787764427,2.8335,176.59,176.56,2.834]
[1729787764623,12.22662539,176.61,176.52,4.68]
[1729787764828,2.8337,176.58,176.55,2.834]
[1729787765319,12.22662539,176.61,176.52,4.68]
[1729787765519,12.22662539,176.59,176.49,1.1594]
[1729787765728,12.22662539,176.57,176.51,4.68]
[1729787766125,2.8342,176.55,176.52,2.8345]
[1729787767629,12.22662539,176.59,176.51,4.68]
[1729787768032,12.22662539,176.59,176.54,2.8342]
[1729787768033,2.8338,176.57,176.54,2.8342]
[1729787769133,2.834,176.56,176.53,2.8344]
[1729787769432,12.22662539,176.59,176.42,162.48387308]
[1729787769433,12.22662539,176.54,176.42,162.48387308]
[1729787769626,12.22662539,176.52,176.43,4.68]
[1729787769826,1.2712,176.55,176.44,12.22662539]
[1729787770129,1.2712,176.55,176.45,4.68]
[1729787770325,2.8348,176.51,176.48,2.8352]
[1729787770531,2.8348,176.51,176.45,4.68]
[1729787771129,2.8348,176.51,176.46,2.8356]
[1729787771333,2.8345,176.53,176.46,4.68]
[1729787771727,12.22662539,176.56,176.46,16.90662539]
[1729787771928,12.22662539,176.56,176.47,2.4372]
[1729787772232,12.22662539,176.58,176.47,2.4372]
[1729787772432,2.8343,176.54,176.47,2.4372]
[1729787772935,2.8341,176.56,176.52,2.8345]
[1729787773130,12.22662539,176.58,176.5,4.68]
[1729787773434,2.8341,176.55,176.51,2.8347]
[1729787773631,12.22662539,176.58,176.5,4.68]
[1729787773832,2.834,176.56,176.52,2.8345]
[1729787774031,12.22662539,176.58,176.5,4.68]
[1729787774731,2.834,176.56,176.52,2.8346]
[1729787775134,12.22662539,176.58,176.5,4.68]
[1729787775328,5.8943,176.61,176.5,4.68]
[1729787775329,12.22662539,176.55,176.5,4.68]
[1729787776738,2.8346,176.53,176.5,4.68]
[1729787777230,2.8346,176.53,176.5,7.5149]
[1729787778534,12.22662539,176.55,176.5,2.8349]
[1729787779131,12.22662539,176.55,176.47,7.1172]
[1729787779338,2.8347,176.52,176.49,2.8351]
[1729787779934,2.8347,176.52,176.48,2.8351]
[1729787780733,12.22662539,176.55,176.48,2.8351]
[1729787780734,2.8345,176.53,176.48,2.8351]
[1729787780936,12.22662539,176.55,176.48,2.8351]
[1729787781440,2.8347,176.52,176.48,2.8351]
[1729787781842,12.22662539,176.55,176.47,7.1172]
[1729787782437,2.8347,176.52,176.48,2.8351]
[1729787783441,2.8347,176.52,176.47,7.1172]
[1729787783744,2.8347,176.52,176.49,2.8351]
[1729787784142,12.22662539,176.55,176.47,7.1172]
[1729787784345,4.68,176.57,176.47,19.34382539]
[1729787785040,2.8344,176.54,176.5,2.8349]
[1729787785235,4.68,176.57,176.5,2.8349]
[1729787785439,2.8344,176.54,176.51,2.8347]
[1729787785636,4.68,176.57,176.51,2.8347]
[1729787786149,12.22662539,176.58,176.51,2.8347]
[1729787786647,2.8344,176.54,176.51,2.8347]
[1729787786942,12.22662539,176.58,176.49,4.68]
[1729787787143,2.8344,176.54,176.49,4.68]
[1729787787442,1.2728,176.62,176.49,16.90662539]
[1729787787649,12.22662539,176.61,176.49,16.90662539]
[1729787787839,2.8338,176.57,176.49,16.90662539]
[1729787788038,2.8338,176.57,176.54,2.8342]
[1729787788839,12.22662539,176.57,176.53,4.68]
[1729787789037,2.8343,176.54,176.53,4.68]
[1729787790541,2.8343,176.54,176.49,2.8351]
[1729787790744,2.8346,176.53,176.5,4.68]
[1729787790949,12.22662539,176.57,176.5,4.68]
[1729787791253,12.22662539,176.57,176.5,7.5148]
[1729787791439,2.8345,176.53,176.5,7.5148]
[1729787791643,2.8345,176.53,176.5,2.8348]
[1729787791843,2.8345,176.53,176.5,2.8349]
[1729787792448,2.8345,176.53,176.49,4.68]
[1729787792746,2.8345,176.53,176.5,2.8349]
[1729787793345,2.8349,176.51,176.48,2.8352]
[1729787793539,12.22662539,176.55,176.43,1.41763405]
[1729787793740,12.22662539,176.55,176.47,4.68]
[1729787793951,13.43362539,176.55,176.47,4.68]
[1729787794153,13.43362539,176.55,176.46,7.5154]
[1729787794154,2.8351,176.5,176.46,7.5154]
[1729787794649,2.8351,176.5,176.47,2.8354]
[1729787797353,12.22662539,176.57,176.47,12.22662539]
[1729787798048,2.8344,176.54,176.51,2.8346]
[1729787798649,12.22662539,176.57,176.51,2.8346]
[1729787798851,2.8345,176.53,176.51,2.8346]
[1729787799342,2.8346,176.52,176.49,2.835]
[1729787800954,2.8345,176.53,176.5,2.8348]
[1729787801246,2.8345,176.53,176.47,12.22662539]
[1729787801843,12.22662539,176.57,176.47,12.22662539]
[1729787802048,2.4762,176.6,176.49,12.22662539]
[1729787802350,2.4762,176.6,176.5,7.1351]
[1729787802551,2.8338,176.58,176.55,2.8341]
[1729787803461,12.22662539,176.61,176.52,12.22662539]
[1729787805259,2.8335,176.59,176.54,2.8342]
[1729787805463,2.8335,176.59,176.54,4.68]
[1729787805958,2.8335,176.59,176.55,2.834]
[1729787807063,2.8335,176.59,176.56,2.8339]
[1729787807659,2.8333,176.6,176.54,4.68]
[1729787807858,2.4829,176.65,176.54,16.90662539]
[1729787808356,2.4829,176.65,176.59,2.8334]
[1729787808357,2.833,176.62,176.59,2.8334]
[1729787808754,2.4829,176.65,176.58,4.68]
[1729787808954,2.833,176.63,176.6,2.8333]
[1729787809155,2.4829,176.65,176.58,4.68]
[1729787809352,12.22662539,176.64,176.58,4.68]
[1729787809552,2.8335,176.59,176.58,4.68]
[1729787809758,12.22662539,176.62,176.55,4.68]
[1729787810163,12.22662539,176.62,176.55,7.5141]
[1729787810559,2.8336,176.59,176.56,2.834]
[1729787812069,12.22662539,176.64,176.55,4.68]
[1729787812861,2.833,176.63,176.59,2.8333]
[1729787813367,2.833,176.62,176.59,2.8333]
[1729787814964,2.8334,176.6,176.56,2.8339]
[1729787815758,61.18,176.8,176.55,4.68]
[1729787815961,12.22662539,176.67,176.59,2.8334]
[1729787816164,12.22662539,176.67,176.59,4.68]
[1729787816363,12.22662539,176.67,176.6,2.8332]
[1729787816364,2.8328,176.64,176.6,2.8332]
[1729787816766,13.45312539,176.67,176.59,4.68]
[1729787818361,2.8329,176.63,176.6,2.8333]
[1729787820060,13.45312539,176.67,176.59,4.68]
[1729787820260,342.48802532,177.05,176.59,4.68]
[1729787820261,1.2557,176.72,176.61,12.22662539]
[1729787820468,1.2557,176.72,176.64,12.22662539]
[1729787820670,2.832,176.69,176.66,2.8324]
[1729787821163,1.2557,176.72,176.64,16.90662539]
[1729787821670,15.11413147,176.78,176.66,12.22662539]
[1729787821866,2.5099,176.79,176.71,15.05812539]
[1729787822065,2.5099,176.79,176.71,16.90662539]
[1729787822266,2.5099,176.79,176.72,2.8313]
[1729787822471,2.831,176.75,176.72,2.8313]
[1729787823570,2.8306,176.77,176.71,16.90662539]
[1729787823970,12.22662539,176.82,176.71,16.90662539]
[1729787824271,2.8305,176.78,176.74,2.831]
[1729787824574,2.8305,176.78,176.75,2.8309]
[1729787824774,2.8305,176.78,176.71,16.90662539]
[1729787825371,2.8306,176.77,176.74,2.831]
[1729787825677,12.22662539,176.82,176.73,12.22662539]
[1729787826177,2.8305,176.78,176.73,12.22662539]
[1729787826377,12.22662539,176.82,176.73,12.22662539]
[1729787826574,19.28432539,176.85,176.73,12.22662539]
[1729787827074,2.8306,176.78,176.74,2.831]
[1729787827270,19.28432539,176.85,176.75,4.66]
[1729787827470,19.28432539,176.85,176.74,7.491]
[1729787827976,2.8307,176.77,176.74,7.491]
[1729787828367,2.8302,176.8,176.74,4.66]
[1729787828563,12.22662539,176.82,176.74,4.66]
[1729787830183,2.8305,176.78,176.74,7.491]
[1729787831268,8.4825,176.97,176.78,2.8304]
[1729787831269,2.83,176.81,176.78,2.8304]
[1729787831570,2.83,176.81,176.79,4.66]
[1729787831771,2.8294,176.85,176.81,2.8298]
[1729787832075,1.2268,176.89,176.79,4.66]
[1729787832471,2.8296,176.84,176.79,4.66]
[1729787832970,2.8296,176.84,176.8,2.83]
[1729787833169,1.2268,176.89,176.79,4.66]
[1729787833369,2.8294,176.85,176.81,2.8299]
[1729787833869,2.8294,176.85,176.79,4.66]
[1729787834069,2.8292,176.87,176.83,2.8296]
[1729787834269,12.22662539,176.9,176.84,4.66]
[1729787834677,2.8291,176.87,176.84,7.4894]
[1729787839179,2.8299,176.82,176.79,2.8302]
[1729787839479,2.8299,176.82,176.8,4.66]
[1729787839679,12.22662539,176.86,176.8,4.66]
[1729787839982,12.22662539,176.83,176.8,4.66]
[1729787840277,12.22662539,176.83,176.79,4.66]
[1729787840873,2.8301,176.8,176.79,4.66]
[1729787841170,12.22662539,176.83,176.78,4.66]
[1729787841683,2.8303,176.79,176.78,4.66]
[1729787843184,2.8305,176.78,176.76,4.66]
[1729787845684,2.8306,176.77,176.76,4.66]
[1729787845886,12.22662539,176.79,176.74,4.66]
[1729787846386,2.8305,176.78,176.74,4.66]
[1729787846689,12.22662539,176.79,176.74,4.66]
[1729787847486,12.22662539,176.79,176.7,2.8316]
[1729787847792,12.22662539,176.76,176.66,12.22662539]
[1729787847987,12.22662539,176.76,176.65,1.1902]
[1729787847988,2.8315,176.72,176.65,1.1902]
[1729787848284,12.22662539,176.71,176.66,4.66]
[1729787848687,2.8318,176.7,176.66,7.4922]
[1729787850890,2.8318,176.7,176.66,4.66]
[1729787851090,2.8318,176.7,176.67,2.8322]
[1729787851984,2.8318,176.7,176.67,7.4922]
[1729787855403,2.8318,176.7,176.67,4.66]
[1729787857299,2.8318,176.7,176.67,7.4922]
[1729787858207,12.22662539,176.71,176.63,2.3668]
[1729787858408,12.22662539,176.69,176.6,61.12]
[1729787858599,12.22662539,176.69,176.62,4.66]
[1729787859099,2.8325,176.65,176.62,7.4929]
[1729787859805,2.8324,176.66,176.63,2.8328]
[1729787862297,2.8324,176.66,176.62,7.4929]
[1729787863702,12.22662539,176.69,176.62,4.66]
[1729787864107,12.22662539,176.69,176.64,2.8326]
[1729787864306,12.22662539,176.69,176.62,4.66]
[1729787864706,2.8322,176.67,176.64,2.8325]
[1729787865006,12.22662539,176.69,176.64,2.8325]
[1729787865908,12.22662539,176.69,176.63,7.4927]
[1729787866104,2.8324,176.66,176.63,7.4927]
[1729787867412,12.22662539,176.67,176.63,4.66]
[1729787868009,2.8326,176.65,176.63,4.66]
[1729787868307,12.22662539,176.67,176.63,4.66]
[1729787868809,12.22662539,176.67,176.63,7.4928]
[1729787869205,2.8324,176.66,176.63,4.66]
[1729787869405,8.3753,176.71,176.63,4.66]
[1729787869406,12.22662539,176.7,176.63,4.66]
[1729787869710,2.8322,176.68,176.59,12.22662539]
[1729787869909,2.8322,176.68,176.65,2.8324]
[1729787870501,12.22662539,176.7,176.64,4.66]
[1729787870699,12.22662539,176.7,176.66,2.8322]
[1729787871106,2.832,176.69,176.66,2.8322]
[1729787872412,2.4979,176.71,176.64,4.66]
[1729787872714,12.22662539,176.76,176.65,12.22662539]
[1729787872918,12.22662539,176.76,176.65,14.64692539]
[1729787873219,2.8313,176.73,176.7,2.8316]
[1729787874116,2.8313,176.73,176.71,2.8315]
[1729787874508,1.1713,176.77,176.68,16.88662539]
[1729787874710,1.1713,176.77,176.72,2.8313]
[1729787874911,12.22662539,176.78,176.68,16.88662539]
[1729787875202,2.8308,176.76,176.71,2.8316]
[1729787875405,12.22662539,176.78,176.69,4.66]
[1729787875602,2.8308,176.76,176.69,4.66]
[1729787875917,2.8308,176.76,176.73,2.8311]
[1729787878114,12.22662539,176.76,176.68,4.66]
[1729787878912,2.8317,176.71,176.68,7.4919]
[1729787879117,2.8317,176.71,176.68,2.8319]
[1729787879311,2.8317,176.71,176.68,7.4919]
[1729787880113,12.22662539,176.76,176.68,4.66]
[1729787880418,1.188,176.77,176.68,4.66]
[1729787880419,12.22662539,176.74,176.68,4.66]
[1729787880619,12.22662539,176.72,176.64,4.66]
[1729787880922,12.22662539,176.72,176.64,7.4926]
[1729787881415,2.8322,176.68,176.64,7.4926]
[1729787881620,12.22662539,176.72,176.64,7.4926]
[1729787882116,1.2258,176.71,176.64,4.66]
[1729787882622,2.8323,176.67,176.64,4.66]
[1729787883210,12.22662539,176.69,176.64,4.66]
[1729787883416,12.22662539,176.69,176.58,1.202]
[1729787883417,12.22662539,176.67,176.58,1.202]
[1729787883722,12.22662539,176.67,176.59,4.66]
[1729787883921,2.833,176.63,176.59,7.4934]
[1729787884117,12.22662539,176.67,176.59,7.4934]
[1729787884715,2.8329,176.63,176.6,2.8333]
[1729787885421,2.8332,176.61,176.59,4.66]
[1729787886514,2.8331,176.62,176.59,4.66]
[1729787886916,12.22662539,176.65,176.57,2.8338]
[1729787887118,12.22662539,176.65,176.57,7.4938]
[1729787888025,2.8333,176.61,176.57,7.4938]
[1729787888924,12.22662539,176.65,176.57,7.4938]
[1729787890025,2.8333,176.61,176.57,7.4938]
[1729787890630,2.8333,176.61,176.58,2.8335]
[1729787893027,2.84955357,176.69,176.57,4.66]
[1729787893242,15.07617896,176.69,176.61,2.8331]
[1729787893725,2.8323,176.67,176.61,2.8331]
[1729787893925,15.07617896,176.69,176.61,2.8331]
[1729787894232,12.22662539,176.69,176.58,12.22662539]
[1729787894539,2.8323,176.67,176.6,12.22662539]
[1729787894727,1.2001,176.7,176.61,4.66]
[1729787894927,2.8321,176.68,176.65,2.8324]
[1729787895234,2.8321,176.68,176.61,5.8515]
[1729787895537,2.8321,176.68,176.63,2.8327]
[1729787896528,2.8321,176.68,176.61,5.8515]
[1729787896529,2.8319,176.69,176.64,2.8327]
[1729787896832,12.22662539,176.7,176.62,4.66]
[1729787897021,2.8325,176.66,176.62,4.66]
[1729787897221,12.22662539,176.7,176.62,4.66]
[1729787897630,12.22662539,176.7,176.62,7.493]
[1729787899236,2.8324,176.66,176.62,7.493]
[1729787900031,2.8324,176.66,176.62,2.833]
[1729787900232,2.8324,176.66,176.63,4.66]
[1729787900927,1.2258,176.71,176.63,16.88662539]
[1729787901132,12.22662539,176.72,176.63,16.88662539]
[1729787901532,2.832,176.68,176.64,2.8326]
[1729787902037,2.8318,176.7,176.66,2.8323]
[1729787902430,18.03612539,176.75,176.66,2.8323]
[1729787903733,2.8319,176.7,176.66,2.8323]
[1729787903935,13.37612539,176.75,176.63,16.88662539]
[1729787904128,13.37612539,176.75,176.68,2.832]
[1729787904328,2.8315,176.72,176.67,4.66]
[1729787905537,2.8315,176.72,176.68,2.832]
[1729787907131,2.8317,176.7,176.67,7.4922]
[1729787910139,2.8313,176.73,176.67,4.66]
[1729787910344,13.37612539,176.75,176.67,4.66]
[1729787910841,2.8318,176.7,176.67,4.66]
[1729787911051,2.8318,176.7,176.67,7.4921]
[1729787912338,2.8316,176.71,176.67,7.4921]
[1729787912539,13.37612539,176.75,176.67,7.4921]
[1729787912942,2.8317,176.71,176.67,7.4921]
[1729787914642,1.1495,176.75,176.67,4.66]
[1729787914848,2.8313,176.73,176.7,2.8317]
[1729787915544,2.8313,176.73,176.68,1.4161128]
[1729787915748,12.22662539,176.79,176.69,1.41598954]
[1729787915951,12.22662539,176.79,176.7,16.88662539]
[1729787916153,2.8307,176.77,176.74,2.8311]
[1729787916651,12.22662539,176.81,176.74,2.8311]
[1729787916857,2.8307,176.77,176.74,2.8311]
[1729787917057,12.22662539,176.81,176.74,2.8311]
[1729787917255,12.22662539,176.81,176.73,2.8312]
[1729787917465,2.8309,176.76,176.7,16.88662539]
[1729787917758,2.8309,176.76,176.73,2.8311]
[1729787918757,12.22662539,176.81,176.71,1.41590297]
[1729787918960,12.22662539,176.81,176.75,2.8308]
[1729787919260,12.22662539,176.81,176.74,4.66]
[1729787920262,2.8307,176.77,176.74,7.491]
[1729787921161,12.22662539,176.79,176.7,12.22662539]
[1729787921357,12.22662539,176.79,176.69,1.1916]
[1729787921564,12.22662539,176.77,176.7,4.66]
[1729787922062,2.8315,176.72,176.69,2.8317]
[1729787922253,12.22662539,176.77,176.69,4.66]
[1729787922454,2.8312,176.73,176.7,2.8316]
[1729787926064,2.8309,176.75,176.69,7.4918]
[1729787926270,12.22662539,176.77,176.69,7.4918]
[1729787926663,2.8309,176.75,176.69,7.4918]
[1729787926963,12.22662539,176.77,176.69,7.4918]
[1729787927467,2.8313,176.73,176.69,7.4918]
[1729787927861,12.22662539,176.77,176.71,2.8314]
[1729787928060,2.8311,176.74,176.71,2.8314]
[1729787928555,12.22662539,176.77,176.69,4.66]
[1729787928556,2.8309,176.75,176.69,4.66]
[1729787928863,4.66,176.8,176.69,6.07595862]
[1729787928864,12.22662539,176.8,176.69,6.07595862]
[1729787929170,2.3849,176.82,176.71,12.22662539]
[1729787929171,14.61152539,176.82,176.71,12.22662539]
[1729787929677,14.61152539,176.82,176.74,2.8309]
[1729787929871,2.8306,176.77,176.74,7.4909]
[1729787930066,14.61152539,176.82,176.75,2.8307]
[1729787930564,2.8305,176.78,176.75,2.8307]
[1729787930761,14.61152539,176.82,176.75,2.8307]
[1729787930961,2.8305,176.78,176.75,2.8307]
[1729787931360,14.61152539,176.82,176.75,2.8307]
[1729787932363,2.8306,176.77,176.75,2.8307]
[1729787932973,14.61152539,176.82,176.75,2.8307]
[1729787933173,14.61152539,176.82,176.74,4.66]
[1729787933364,14.61152539,176.82,176.76,2.8306]
[1729787933564,2.8303,176.79,176.76,2.8306]
[1729787933765,2.8303,176.79,176.74,4.66]
[1729787934775,14.61152539,176.82,176.74,4.66]
[1729787934967,2.8305,176.78,176.74,4.66]
[1729787935369,2.8305,176.78,176.75,2.8307]
[1729787936174,2.8305,176.78,176.76,2.8307]
[1729787936472,14.61152539,176.82,176.74,4.66]
[1729787936473,2.8301,176.8,176.74,4.66]
[1729787936672,2.8301,176.8,176.77,2.8305]
[1729787940272,2.8301,176.8,176.77,10.65702873]
[1729787942577,2.8302,176.79,176.77,10.65702873]
[1729787949887,2.8302,176.79,176.78,4.64]
[1729787952487,2.8301,176.8,176.78,7.4704]
[1729787952876,2.8301,176.8,176.78,4.64]
[1729787953478,7.82652873,176.82,176.78,4.64]
[1729787953687,2.8302,176.79,176.78,4.64]
[1729787955987,2.8309,176.75,176.7,2.8316]
[1729787956189,7.82652873,176.78,176.72,7.82652873]
[1729787956392,7.82652873,176.78,176.73,4.64]
[1729787956589,2.8309,176.76,176.73,2.8312]
[1729787956791,7.82652873,176.77,176.73,4.64]
[1729787957001,7.82652873,176.77,176.72,7.82652873]
[1729787957296,7.82652873,176.78,176.73,2.8312]
[1729787957692,7.82652873,176.76,176.72,4.64]
[1729787958085,2.8311,176.74,176.72,4.64]
[1729787960691,2.8308,176.76,176.73,7.82652873]
[1729787961298,9.00612873,176.79,176.73,7.82652873]
[1729787961498,2.831,176.75,176.72,12.46652873]
[1729787961891,2.831,176.75,176.72,15.29772873]
[1729787962395,2.831,176.74,176.72,7.4712]
[1729787962595,7.82652873,176.77,176.72,7.4712]
[1729787963393,2.8309,176.75,176.72,7.4712]
[1729787965599,7.82652873,176.74,176.69,4.64]
[1729787965805,7.82652873,176.75,176.7,9.24219035]
[1729787966001,7.82652873,176.75,176.7,7.82652873]
[1729787966301,7.82652873,176.75,176.7,9.24226758]
[1729787966500,10.65742873,176.75,176.72,2.8313]
[1729787966691,7.82652873,176.75,176.7,9.24226758]
[1729787967093,7.82652873,176.75,176.7,7.82652873]
[1729787967299,7.82652873,176.75,176.7,9.24226758]
[1729787967801,2.8309,176.76,176.71,7.82652873]
[1729787968207,7.82652873,176.77,176.71,7.82652873]
[1729787968598,2.8309,176.75,176.72,2.8312]
[1729787969197,2.8309,176.75,176.73,2.8312]
[1729787970106,2.8309,176.75,176.72,2.8313]
[1729787970402,7.82652873,176.75,176.71,7.82652873]
[1729787970806,7.82652873,176.75,176.72,2.8312]
[1729787971404,7.82652873,176.75,176.71,7.82652873]
[1729787971405,7.82652873,176.75,176.73,2.8312]
[1729787975605,2.8314,176.72,176.71,1.41580797]
[1729787975897,2.8314,176.72,176.69,1.41580797]
[1729787975898,7.82652873,176.72,176.69,1.41580797]
[1729787976098,7.82652873,176.72,176.65,13.64552873]
[1729787976297,2.8317,176.7,176.67,2.8321]
[1729787976496,2.8317,176.7,176.68,1.41597339]
[1729787976707,2.8317,176.7,176.69,1.41597339]
[1729787976910,7.82652873,176.69,176.64,6.05614276]
[1729787977097,7.82652873,176.69,176.65,1.41614276]
[1729787977411,2.8323,176.66,176.63,7.4728]
[1729787977602,2.8323,176.66,176.64,1.41625716]
[1729787977911,2.8323,176.66,176.65,1.41625716]
[1729787978110,10.65882873,176.66,176.65,1.41625716]
[1729787978297,2.8327,176.64,176.61,7.473]
[1729787978498,10.65922873,176.64,176.62,1.41633587]
[1729787978700,10.65922873,176.64,176.63,1.41633587]
[1729787979405,7.82652873,176.64,176.61,4.64]
[1729787979606,7.82652873,176.62,176.58,7.4735]
[1729787979807,7.82652873,176.62,176.59,1.4165332]
[1729787980104,7.82652873,176.62,176.6,1.4165332]
[1729787980306,7.82652873,176.62,176.61,1.4165332]
[1729787980502,2.833,176.62,176.61,1.4165332]
[1729787981304,2.833,176.62,176.59,2.8334]
[1729787981509,2.833,176.62,176.6,1.41654364]
[1729787981814,2.833,176.62,176.61,1.41654364]
[1729787982008,7.82652873,176.62,176.56,2.8338]
[1729787982203,4.04514106,176.67,176.57,1.41659497]
[1729787982204,2.8335,176.59,176.57,1.41659497]
[1729787982714,10.66012873,176.58,176.57,1.41659497]
[1729787983009,10.66012873,176.58,176.54,4.64]
[1729787983607,10.66012873,176.58,176.54,7.4742]